Cogmind - Beta 13 @@@ ROGUE MODE // 2024.04.13 @ 23:43:49 Player: Copyrite Result: Destroyed by Y-45 Defender with Heavy Assault Rifle Performance ------------- Evolutions (0) 0 Regions Visited (4) 800 Robots Destroyed (16) 80 Value Destroyed (366) 366 Prototype IDs (1) 20 Alien Tech Used (0) 0 Bonus (22) 22 TOTAL SCORE: 1288 Bonus ------- High Alert Combat Kills 22 Cogmind --------- Core Integrity 0/250 Matter 270/300 Energy 124/125 System Corruption 1% Temperature Cool (9) Movement Treading (240) Ox1 Location -9/Recycling Parts ------- > --- POWER (1) -------- Light Ion Engine > --- PROPULSION (2) --- Light Treads Light Treads > --- UTILITY (2) ------ High-capacity Storage Unit Targeting Computer > --- WEAPON (2) ------- Subdweller Machine Gun Makeshift Spear > --- INVENTORY (20) --- Light Ion Engine Compact Wheel Subdweller Monowheel Scrap Engine Targeting Computer Scrap Shield Subdweller Laser Light Assault Rifle Peak State ------------ > --- POWER ------------ Ion Engine > --- PROPULSION ------- Light Treads Light Treads > --- UTILITY ---------- Small Storage Unit Targeting Computer > --- WEAPON ----------- Powered Cannon > --- INVENTORY -------- Light Ion Engine Light Treads Structural Scanner Targeting Computer Scrap Shield Assault Rifle Assault Rifle [Rating: 20] Favorites ----------- Power Ion Engine Engine Ion Engine Propulsion Light Treads Treads Light Treads Utility Small Storage Unit Device Structural Scanner Storage Small Storage Unit Processor Targeting Computer Weapon Assault Rifle Energy Cannon Powered Cannon Ballistic Gun Assault Rifle Special Weapon Flamer Piercing Weapon Makeshift Spear Build | -11 -10 -10 -10 -9 ------- Run | Yrd Mat Min Sub Rec Slots Evolved . | . . . . . Power . | . . . . . Propulsion . | . . . . . Utility . | . . . . . Weapon . | . . . . . Parts Attached 18 | 6 1 1 8 2 Power 2 | 1 . . . 1 Engine 2 | 1 . . . 1 Core . | . . . . . Reactor . | . . . . . Propulsion 6 | 2 . . 4 . Treads 6 | 2 . . 4 . Leg . | . . . . . Wheel . | . . . . . Hover . | . . . . . Flight . | . . . . . Utility 4 | 1 1 1 . 1 Device 1 | . 1 . . . Storage 2 | 1 . . . 1 Processor 1 | . . 1 . . Hackware . | . . . . . Protection . | . . . . . Artifact . | . . . . . Weapon 6 | 2 . . 4 . Energy Gun . | . . . . . Energy Cannon 1 | . . . 1 . Ballistic Gun 3 | 2 . . 1 . Ballistic Cannon . | . . . . . Launcher . | . . . . . Special Weapon 1 | . . . 1 . Impact Weapon . | . . . . . Slashing Weapon . | . . . . . Piercing Weapon 1 | . . . 1 . Special Melee Weapon . | . . . . . Unidentified Prototypes 1 | . . . 1 . Parts Lost 5 | . . . 4 1 Power 1 | . . . . 1 Propulsion 2 | . . . 2 . Utility . | . . . . . Weapon 2 | . . . 2 . Highest Loss Streak 3 | . . . 3 1 To Critical Strikes 1 | . . . 1 . Average Slot Usage (%) 89 | . 88 100 85 90 Engine 12 | . 14 14 13 4 Treads 26 | . 28 28 24 28 Device 1 | . 3 3 . . Storage 13 | . 14 14 13 14 Processor 9 | . . 10 13 14 Energy Cannon 2 | . . . 6 . Ballistic Gun 18 | . 28 28 10 14 Piercing Weapon 3 | . . . 2 14 Naked Turns . | . . . . . Heaviest Build 49 | 14 15 15 19 49 Greatest Support 40 | 40 40 40 40 40 Greatest Overweight (x) 1 | 1 . . . 1 Average Overweight (x) . | . . . . . Largest Inventory Capacity 20 | 8 8 8 8 20 Average Capacity 8 | 6 8 8 8 13 Most Carried 11 | 6 7 8 8 11 Average Carried 7 | 4 6 7 7 8 Final Capacity 20 | 8 8 8 8 20 Final Carried 10 | 6 7 8 8 10 Class Distribution -------------------- 100% | Mutant Dominant Class ---------------- Mutant | -10/Materials Mutant | -10/Mines Mutant | -10/Subcaves Mutant | -9/Recycling Resources | -11 -10 -10 -10 -9 ----------- Run | Yrd Mat Min Sub Rec Matter Collected 579 | 229 47 91 185 27 Remotely . | . . . . . Salvage Created 540 | . 47 . 276 217 Parts 28 | . 6 . 17 5 Haulers Intercepted . | . . . . . Recyclers Shooed 1 | . . . . 1 Parts Field Recycled . | . . . . . Retrieved Matter . | . . . . . Parts Self-Destructed 8 | . . . 8 . Prevented . | . . . . . Kills | -11 -10 -10 -10 -9 ------- Run | Yrd Mat Min Sub Rec Combat Hostiles Destroyed 12 | . 3 . 7 2 Melee 2 | . . . 1 1 Guns 6 | . 3 . 2 1 Cannons 4 | . . . 4 . Classes Destroyed 6 | . 1 . 3 2 Recycler 2 | . . . . 2 Turret 2 | . . . 2 . Swarmer 6 | . 3 . 2 1 Grunt 1 | . . . . 1 Artisan 1 | . . . 1 . Subdweller 5 | . . . 5 . Best Kill Streak 3 | . 3 . 2 2 Combat Bots Only 3 | . 3 . 2 2 Max Kills in Single Turn 1 | . 1 . 1 1 Gunslinging . | . . . . . Exploded . | . . . . . Melee 1 | . . . 1 1 Uniques/NPCs Destroyed . | . . . . . Combat | -11 -10 -10 -10 -9 -------- Run | Yrd Mat Min Sub Rec Hostile Shots Fired 139 | . 16 2 98 23 Missed 37 | . 4 . 31 2 Damage Taken 1222 | . 94 28 849 251 Core 257 | . 22 . 160 75 Absorbed by Shields . | . . . . . Core Remaining (%) 100 | 100 . . . . Volleys Fired 79 | . 15 . 43 21 Largest 2 | . 2 . 2 1 Hottest 100 | . 40 . 100 30 Shots Fired 112 | . 30 . 61 21 Gun 93 | . 30 . 42 21 Cannon 15 | . . . 15 . Launcher . | . . . . . Special 4 | . . . 4 . Kinetic 93 | . 30 . 42 21 Thermal 19 | . . . 19 . Explosive . | . . . . . Electromagnetic . | . . . . . Robot Hit Streak 19 | . 9 . 19 5 Robot Miss Streak 4 | . 4 . 2 3 Penetration Max . | . . . . . Secondary Targets 2 | . 2 . . . Max Gunslinging Chain 1 | . 1 . . . Shots Hit Robots 80 | . 18 . 48 14 Core Hits 23 | . 4 . 14 5 Critical Kills . | . . . . . Critical Parts Destroyed . | . . . . . Critical Strikes . | . . . . . Melee Attacks 7 | . . . 2 5 Impact . | . . . . . Slashing . | . . . . . Piercing 7 | . . . 2 5 Sneak Attacks . | . . . . . Combat Hostiles . | . . . . . Follow-up Attacks . | . . . . . Damage Inflicted 1576 | 5 225 . 1035 311 Guns 937 | . 225 . 453 259 Cannons 536 | . . . 536 . Explosions . | . . . . . Melee 87 | . . . 35 52 Ramming 5 | 5 . . . . Kinetic 937 | . 225 . 453 259 Thermal 547 | . . . 547 . Explosive . | . . . . . Electromagnetic . | . . . . . Impact . | . . . . . Slashing . | . . . . . Piercing 87 | . . . 35 52 Highest Corruption 1 | . . . . 1 Average Corruption 1 | . . . . 1 Corruption Purged . | . . . . . Corruption Blocked . | . . . . . Overload Shots . | . . . . . Overflow Damage 45 | . . . 45 . Projectiles 45 | . . . 45 . Explosions . | . . . . . Melee . | . . . . . Knockbacks . | . . . . . Impact . | . . . . . Kinetic . | . . . . . Secondary . | . . . . . Self-Inflicted Damage . | . . . . . Shots . | . . . . . Rammed 1 | 1 . . . . Targets Rammed 1 | 1 . . . . Kicked . | . . . . . Crushed . | . . . . . Highest Temperature 9 | . . . 9 7 Average Temperature 3 | . . . 9 2 Received Heat Transfer 282 | . . 9 171 102 Siege Activations . | . . . . . Robots Corrupted . | . . . . . Combat Hostiles . | . . . . . Parts Fried . | . . . . . Impact Corruptions . | . . . . . Robots Melted . | . . . . . Combat Hostiles . | . . . . . Parts Melted . | . . . . . Heat Transferred 80 | . . . 80 . Parts Sabotaged . | . . . . . Parts Stolen . | . . . . . Parts Stripped . | . . . . . Power Chain Reactions . | . . . . . Alert | -11 -10 -10 -10 -9 ------- Run | Yrd Mat Min Sub Rec Peak Influence 819 | . 113 58 . 819 Initial 772 | . . 43 . 772 Average 229 | . 78 57 . 800 Maximum Alert Level 3 | . . . . 3 Low Security (%) 77 | 100 100 100 . . Level 1 . | . . . . . Level 2 . | . . . . . Level 3 22 | . . . . 100 Level 4 . | . . . . . Level 5 . | . . . . . High Security . | . . . . . Max Security . | . . . . . Squads Dispatched 3 | . 3 . . . Investigation . | . . . . . Extermination . | . . . . . Reinforcement 3 | . 3 . . . Assault . | . . . . . Garrison . | . . . . . Intercept . | . . . . . Searches Triggered . | . . . . . Construction Impeded . | . . . . . Haulers Reinforced . | . . . . . Active Scanning Responses . | . . . . . Cargo Convoy Interrupts . | . . . . . Stealth | -11 -10 -10 -10 -9 --------- Run | Yrd Mat Min Sub Rec Distress Signals 1 | . 1 . . . Communications Jammed . | . . . . . Distress Signals . | . . . . . Times Spotted 70 | . 12 2 51 5 Peak Tracking Total 6 | . 6 1 6 4 Tactical Retreats 4 | . . . 4 . Traps | -11 -10 -10 -10 -9 ------- Run | Yrd Mat Min Sub Rec Traps Triggered . | . . . . . Indirectly . | . . . . . Trap Hack Attempts . | . . . . . Triggered . | . . . . . Disarmed . | . . . . . Reprogrammed . | . . . . . Reused . | . . . . . Traps Extracted . | . . . . . Installed . | . . . . . Triggered . | . . . . . Machines | -11 -10 -10 -10 -9 ---------- Run | Yrd Mat Min Sub Rec Machines Disabled . | . . . . . Max in Single Turn . | . . . . . Machines Repaired . | . . . . . Machines Dismantled . | . . . . . Machines Sabotaged . | . . . . . Overloaded Fab Kills . | . . . . . Hacking | -11 -10 -10 -10 -9 --------- Run | Yrd Mat Min Sub Rec Machines Accessed 4 | . 3 . . 1 Terminals 4 | . 3 . . 1 Fabricators . | . . . . . Repair Stations . | . . . . . Recycling Units . | . . . . . Scanalyzers . | . . . . . Garrison Access . | . . . . . Total Hacks 9 | . 6 . . 3 Successful 4 | . 3 . . 1 Failed 5 | . 3 . . 2 Catastrophic 1 | . 1 . . . Database Lockouts . | . . . . . Manual 9 | . 6 . . 3 Terminals 9 | . 6 . . 3 Fabricators . | . . . . . Repair Stations . | . . . . . Recycling Units . | . . . . . Scanalyzers . | . . . . . Garrison Access . | . . . . . Terminal Hacks . | . . . . . Fabricator Hacks . | . . . . . Repair Station Hacks . | . . . . . Recycling Unit Hacks . | . . . . . Scanalyzer . | . . . . . Garrison Access Hacks . | . . . . . Unauthorized Hacks 4 | . 3 . . 1 Terminals 4 | . 3 . . 1 Botnet 4 | . 3 . . 1 Fabricators . | . . . . . Repair Stations . | . . . . . Recycling Units . | . . . . . Scanalyzers . | . . . . . Garrison Access . | . . . . . Data Cores Recovered . | . . . . . Used . | . . . . . Hacking Detections 4 | . 3 . . 1 Full Trace Events 1 | . . . . 1 Feedback Events 1 | . . . . 1 Corruption 1 | . . . . 1 Feedback Blocked . | . . . . . Robot Schematics Acquired . | . . . . . Robots Built . | . . . . . Authchips . | . . . . . Time . | . . . . . Total Robot Build Rating . | . . . . . Part Schematics Acquired . | . . . . . Parts Built . | . . . . . Authchips . | . . . . . Time . | . . . . . Total Part Build Rating . | . . . . . Parts Repaired . | . . . . . Time . | . . . . . Parts Recycled . | . . . . . Recycled Matter . | . . . . . Retrieved Matter . | . . . . . Retrieved Components . | . . . . . Parts Scanalyzed . | . . . . . Part Schematics Acquired . | . . . . . Parts Damaged . | . . . . . Bothacking | -11 -10 -10 -10 -9 ------------ Run | Yrd Mat Min Sub Rec Used RIF Installer . | . . . . . Robots Hacked . | . . . . . Non-combat . | . . . . . Combat . | . . . . . Robot Hacks Applied . | . . . . . Relay Couplers Released . | . . . . . Fabnet Peak Effective % . | . . . . . Robots Rewired . | . . . . . Allies Hacked . | . . . . . Hacks Repelled . | . . . . . Allies | -11 -10 -10 -10 -9 -------- Run | Yrd Mat Min Sub Rec Total Allies . | . . . . . Largest Group . | . . . . . Highest-Rated Group . | . . . . . Highest-Rated Ally . | . . . . . Total Orders . | . . . . . Ally Attacks . | . . . . . Total Damage . | . . . . . Kills . | . . . . . Allies Corrupted . | . . . . . Allies Melted . | . . . . . Intel | -11 -10 -10 -10 -9 ------- Run | Yrd Mat Min Sub Rec Robot Analysis Total . | . . . . . Derelict Logs Recovered . | . . . . . Drone Launches . | . . . . . Drone Recoveries . | . . . . . Exploration | -11 -10 -10 -10 -9 ------------- Run | Yrd Mat Min Sub Rec Turns Passed 1737 | 106 361 314 724 232 Spaces Moved 875 | 61 192 163 369 90 Core 9 | 9 . . . . Treads 866 | 52 192 163 369 90 Legs . | . . . . . Wheels . | . . . . . Hover . | . . . . . Flight . | . . . . . Fastest Speed 50 | 50 160 160 160 160 Average Speed 162 | 148 160 160 160 192 Slowest Speed 240 | 160 160 160 160 240 Overloaded Moves . | . . . . . Propulsion Burnouts . | . . . . . Robots Hopped . | . . . . . Cave-ins Triggered . | . . . . . Exploration Rate (%) 27 | 5 40 40 35 15 Regions Visited 4 Branch Regions 3 Pre-discovered Areas . | . . . . . Known Exits Taken . | . . . . . Unknown Exits Taken 4 | 1 1 1 1 . Scrap Searched 1 | . . 1 . . Spaces Dug . | . . . . . Terrain Destroyed 4 | . . . 2 2 Melee . | . . . . . Projectile 4 | . . . 2 2 AOE . | . . . . . Terrain Rammed . | . . . . . Walls Destroyed . | . . . . . Machines Disabled . | . . . . . Actions | -11 -10 -10 -10 -9 --------- Run | Yrd Mat Min Sub Rec Total 1074 | 73 215 219 441 126 Wait 54 | . 7 43 3 1 Move 872 | 61 191 162 368 90 Hop . | . . . . . Pick Up 27 | 6 1 7 9 4 Fast Attach 8 | 6 1 . 1 . Attach 6 | . . . 5 1 Detach 1 | . . . 1 . Swap 4 | . . 1 2 1 Drop 16 | . . 6 7 3 Fire 79 | . 15 . 43 21 Melee 7 | . . . 2 5 Ram . | . . . . . Kick . | . . . . . Crush . | . . . . . Escape Stasis . | . . . . . Rewire . | . . . . . Trap . | . . . . . Miscellaneous . | . . . . . Route ------- -11/Scrapyard -10/Materials (discovered 2 exits: [*Mat] / [*Min]) -10/Mines (discovered 2 exits: [*Mat] / [*Sub]) -10/Subcaves (discovered 2 exits: [*Mat] / *Rec) -9/Recycling History --------- Turn | Location | Event 23 | -11/Scrapyard | Discovered new exit (range 14) 107 | -11/Scrapyard | Entered Materials 270 | -10/Materials | Discovered new exit (range 16) 317 | -10/Materials | Build established: Mutant 404 | -10/Materials | Discovered new exit (range 14) 468 | -10/Materials | Entered Mines 473 | -10/Mines | Joined a pair of Derelicts in attacking an 0b10 outpost 582 | -10/Mines | Discovered new exit (range 13) 762 | -10/Mines | Discovered new exit (range 5) 782 | -10/Mines | Entered Subcaves 833 | -10/Subcaves | Ambushed by swarm of Subdwellers 875 | -10/Subcaves | Lost 3 allies 895 | -10/Subcaves | Ambushed by angry Subdweller bent on revenge 965 | -10/Subcaves | A Subdweller sparked back to life 965 | -10/Subcaves | A Subdweller sparked back to life 994 | -10/Subcaves | Found Prototype Energy Cannon 998 | -10/Subcaves | Identified Powered Cannon 999 | -10/Subcaves | Attached Powered Cannon, gained temporary slot: Power 1045 | -10/Subcaves | A swath of the cavern ceiling suddenly collapsed 1101 | -10/Subcaves | Discovered new exit (range 15) 1173 | -10/Subcaves | Shifting Twisted Machinery released Mak. Spear 1188 | -10/Subcaves | Shifting Twisted Machinery released Sub. Beam Cannon 1347 | -10/Subcaves | Shifting Twisted Machinery released Sub. Monowheel 1347 | -10/Subcaves | Shifting Twisted Machinery released Sub. Machine Gun 1370 | -10/Subcaves | Core integrity fell below 50% 1402 | -10/Subcaves | Lost 3 parts (1n2w) 1402 | -10/Subcaves | Discovered new exit (range 11) 1506 | -10/Subcaves | Entered Recycling 1507 | -9/Recycling | Joined Warlord attack on 0b10 via Recycling 1512 | -9/Recycling | Found Scrap Engine 1529 | -9/Recycling | Core integrity fell below 20% 1738 | -9/Recycling | Destroyed by Y-45 Defender with Heavy Assault Rifle Last Messages --------------- Dropped Sml. Storage Unit. Acquired Lgt. Assault Rifle. Acquired 10 matter. R-06 Scavenger collects Sml. Storage Unit. R-06 Scavenger destroyed. Destroyed Tractor Beam. R-06 Scavenger destroyed. Acquired Lgt. Ion Engine. Acquired Com. Wheel. Connecting with Terminal... Current location identified: Recycling >>Trojan(Botnet) Trojan loaded successfully. Testing... Terminal linked with 0 systems. Awaiting botnet instructions. Feedback: System corruption (+1%). R-06 Scavenger collects Corrupted Com. Battery. Y-45 Defender springs to life. Critical hit (Burn: +37). Map ----- +----------------------------------------------------+ | ?????????????????????????????????????????? | | ?????????????????????????????????????????? | | ?????????????????????????????????????????? | | ?????????????????????????????????????????? | | ?????????????????????????????????????????? | | ?????????????????????????????????????????? | | ?????????????????????????????????????????? | | ?????????????????????????????????????????? | | ?????????????????????????????????????????? | | ?????????????????????????????????????????? | | ????????????????????????? ?????????????? | | ????????????????????????? ?????????????? | | ????????????????????????? ?????????????? | | ????????????????????????? #????????????? | | ????????????????????????? +????????????? | | ????????????????????????? #????????????? | | ????????????????????????? r#????????????? | | ????????????????????????# #????????????? | | ????????????????????????# #????????????? | | ???????????????????????## ##???????????? | | ???????????????????????# #???????????? | | ???????????????????????# #???????????? | | ???????????????????????+ T #???????????? | | ???????????????????????# #???????????? | | ???????????????????????# #???????????? | | ????????????????????????#@ #????????????? | | ????????????????????????# ;#???????????? | | ????????????????????????# Y#???????????? | | ????????????????????????# ##???????????? | | ????????????????????????# #????????????? | | ????????????????????????# #????????????? | | ????????????????????????# #????????????? | | ????????????????????????# r #????????????? | | ????????????????????????# #????????????? | | ???????????????????????## ##???????????? | | ????????#+############## #???????????? | | ???????? #???????????? | | ???????? T #???????????? | | ???????? #???#######?? | | ??????????" """ """! # #???# #?? | | ?????????????""" """% #######???#% #?? | | ?????????"" """ """ ########### = !#?? | | ?????? % # #?? | | ?????? % =!! # #?? | | ?????? !%! # =!%#?? | | ???????#######+############### # #?? | | ?????????????????????????????# +% #?? | | ?????????????????????????????# # * *!#?? | | ?????????????????????????????# # ! #?? | | ?????????????????????????????# # #?? | +----------------------------------------------------+ Best States ------------- Heat Dissipation 25 Energy Generation 10 Energy Capacity 250 Matter Stores 300 Matter Capacity 300 Sight Range 16 Terrain Scan Density 10 Evasion (%) 40 Targeting Accuracy 5 Recoil Reduction 2 Item Schematics ----------------- None Robot Schematics ------------------ None Fabricated ------------ Nothing Alien Tech Used ----------------- None Achievements -------------- None Challenges ------------ None Game ------ Seed AssembledTeslaPick Manual? 0 Play Time 00:16:37 Cumulative 23.5 hours Start 2024.04.13 @ 23:29:54 End 2024.04.13 @ 23:43:49 Sessions 1 Manual Loads 0 Difficulty Rogue Special Mode None Game No. 46 Rogue 46 Adventurer 0 Explorer 0 Win Type - Total 0 Types 0/0/0/0/0/0/0/0/0 Lore% 18 Gallery% 25 Achievement% 26 Wizard Run 0 Options --------- Layout 1 ASCII 0 Keyboard 0 Movement Numpad Keybinds 0 Fullscreen 1 Font 32/SmallcapsGlow Map View 50x35 Zoom Use 0% Tactical HUD 0 Map Filters NONE Filters NONE Steam 1 RUN: 74be9278-d422-44b3-b65d-dad150fc33fe